bitfinex/quotes_SOLUSD_20241115
["timestamp","ask_amount","ask_price","bid_price","bid_amount"]
[1731668944797,7.32981576,213.11,213.1,16.4241]
[1731668945001,7.42981576,213.12,213.1,16.4241]
[1731668945502,0.1,213.12,213.1,11.7315]
[1731668946003,7.42981576,213.12,213.1,11.7315]
[1731668946698,0.1,213.12,213.1,11.7315]
[1731668947315,0.1,213.16,213.07,4.6932]
[1731668947316,0.1,213.08,213.07,4.6932]
[1731668947723,0.1,213.08,213.07,11.7332]
[1731668951106,0.1,213.05,213.04,4.6939]
[1731668951634,0.1,213.05,213.03,11.7353]
[1731668954039,7.42981576,213.05,213.01,4.6946]
[1731668954207,0.1,213.0,212.99,16.4323]
[1731668955204,0.1,213.02,212.99,23.76211576]
[1731668955537,0.1,213.02,213.0,7.32981576]
[1731668955716,0.1,213.02,213.01,4.6946]
[1731668957525,0.1,213.02,212.99,11.7374]
[1731668958344,0.1,213.0,212.99,19.06721576]
[1731668958511,0.1,213.0,212.99,11.7374]
[1731668959528,0.1,213.02,213.0,43.776884]
[1731668959840,0.1,213.02,213.01,27.32981576]
[1731668960639,0.1,213.04,213.02,20.0]
[1731668960825,0.1,213.06,213.03,7.32981576]
[1731668961141,0.1,213.06,213.05,51.10669976]
[1731668961317,7.32981576,213.14,213.05,51.10669976]
[1731668961318,0.1,213.08,213.05,51.10669976]
[1731668961521,0.1,213.08,213.07,12.02301576]
[1731668963560,0.1,213.08,213.07,4.6932]
[1731668963730,0.1,213.08,213.07,12.02301576]
[1731668965148,0.1,213.08,213.06,16.4271]
[1731668967348,7.42981576,213.08,213.06,11.7336]
[1731668968266,7.42981576,213.08,213.01,7.32981576]
[1731668968554,0.1,213.03,213.02,16.4302]
[1731668968736,0.1,213.03,213.02,23.76001576]
[1731668968933,0.1,213.03,213.02,43.76001576]
[1731668971233,0.1,213.05,213.03,43.776884]
[1731668971434,0.1,213.07,213.05,23.776884]
[1731668971632,0.1,213.07,213.06,7.32981576]
[1731668972256,0.1,213.07,213.05,31.10669976]
[1731668972556,0.1,213.07,213.05,20.0]
[1731668973251,0.1,213.07,213.05,27.32981576]
[1731668973459,0.1,213.07,213.06,4.6935]
[1731668974541,0.1,213.07,213.05,16.428]
[1731668976757,0.1,213.07,213.02,30.80171576]
[1731668976960,0.1,213.07,213.03,43.776884]
[1731668977138,7.32981576,213.09,213.02,30.80171576]
[1731668977139,0.1,213.04,213.02,23.4719]
[1731668978431,0.1,213.04,212.98,16.4333]
[1731668978632,0.1,213.04,213.0,23.776884]
[1731668979057,0.1,213.04,213.01,16.4311]
[1731668979449,0.1,213.02,213.01,16.4311]
[1731668980757,0.1,212.98,212.97,11.7384]
[1731668981256,0.1,212.98,212.97,31.7384]
[1731668983269,0.1,212.98,212.97,43.76361576]
[1731668983758,0.1,213.0,212.98,43.776884]
[1731668984072,0.1,213.0,212.98,51.10669976]
[1731668984965,0.1,213.0,212.99,7.32981576]
[1731668985156,0.1,213.0,212.98,51.10669976]
[1731668985357,0.1,213.0,212.99,12.02481576]
[1731668986042,0.1,213.02,213.0,20.0]
[1731668986243,0.1,213.02,213.01,7.32981576]
[1731668986645,0.1,213.02,213.01,27.32981576]
[1731668986847,0.1,213.02,213.01,31.10669976]
[1731668987053,0.1,213.04,213.02,20.0]
[1731668987370,0.1,213.04,213.03,12.02391576]
[1731668988650,0.1,213.06,213.03,67.53619976]
[1731668988845,0.1,213.06,213.05,7.32981576]
[1731668989712,0.1,213.06,213.04,31.10669976]
[1731668989976,0.1,213.06,213.05,7.32981576]
[1731668990945,0.1,213.06,213.05,12.02351576]
[1731668992573,0.1,213.06,213.05,4.6937]
[1731668995397,0.1,213.06,213.04,11.7348]
[1731668996871,7.42981576,213.06,213.04,11.7348]
[1731668997172,0.1,213.06,213.04,11.7348]
[1731668998890,0.1,213.06,213.0,20.0]
[1731668999099,0.1,213.01,213.0,27.32981576]
[1731668999476,0.1,213.01,213.0,7.32981576]
[1731668999679,0.1,212.99,212.98,20.0]
[1731669000590,0.1,212.99,212.98,27.32981576]
[1731669000984,0.1,212.99,212.98,55.80189976]
[1731669001493,0.1,213.01,212.99,23.776884]
[1731669001696,0.1,213.01,213.0,7.32981576]
[1731669002200,0.1,213.01,212.98,43.76311576]
[1731669002384,0.1,212.99,212.98,16.4333]
[1731669003089,0.1,212.99,212.98,23.76311576]
[1731669003391,0.1,213.01,212.98,67.53999976]
[1731669003690,0.1,213.05,213.03,23.776884]
[1731669004198,0.1,213.05,213.03,7.32981576]
[1731669004374,0.1,213.02,213.01,20.0]
[1731669004581,0.1,213.0,212.99,43.776884]
[1731669005287,0.1,213.0,212.99,48.471884]
[1731669005498,0.1,213.0,212.99,55.80169976]
[1731669011285,0.1,213.0,212.93,7.32981576]
[1731669011286,7.42981576,213.0,212.93,7.32981576]
[1731669011480,0.1,212.95,212.91,23.4835]
[1731669011795,15.8395,213.03,212.91,23.4835]
[1731669011796,0.1,212.97,212.91,23.4835]
[1731669012507,0.1,212.97,212.96,27.32981576]
[1731669012709,0.1,212.97,212.95,7.32981576]
[1731669013000,0.1,212.95,212.94,7.32981576]
[1731669013203,15.8395,213.03,212.91,7.32981576]
[1731669013204,0.1,212.93,212.91,7.32981576]
[1731669013404,0.1,212.93,212.9,47.25461576]
[1731669013587,0.1,212.93,212.92,7.32981576]
[1731669013912,0.1,212.93,212.91,7.32981576]
[1731669014275,0.1,212.93,212.92,7.32981576]
[1731669015088,0.1,212.93,212.92,12.02631576]
[1731669015589,0.1,212.93,212.92,4.6965]
[1731669016687,0.1,212.93,212.9,16.4394]
[1731669016986,0.1,212.91,212.9,11.7426]
[1731669017191,7.42981576,212.91,212.88,4.6974]
[1731669017502,0.1,212.87,212.86,4.6977]
[1731669018786,0.1,212.87,212.86,55.80439976]
[1731669019699,0.1,212.89,212.87,43.776884]
[1731669020100,0.1,212.89,212.88,7.32981576]
[1731669020607,0.1,212.89,212.88,12.02721576]
[1731669020799,0.1,212.89,212.88,55.80409976]
[1731669020991,0.1,212.91,212.9,20.0]
[1731669021189,0.1,212.91,212.9,27.32981576]
[1731669021387,0.1,212.91,212.9,31.10669976]
[1731669021590,0.1,212.93,212.91,23.776884]
[1731669021799,0.1,212.93,212.92,7.32981576]
[1731669022802,0.1,212.93,212.92,12.02631576]
[1731669024393,0.1,212.93,212.92,55.80319976]
[1731669024588,0.1,212.95,212.93,43.776884]
[1731669024785,0.1,212.95,212.94,35.80279976]
[1731669024988,0.1,212.95,212.94,48.472984]
[1731669025228,0.1,212.95,212.94,55.80279976]
[1731669031520,0.1,212.97,212.95,23.776884]
[1731669031898,0.1,212.97,212.95,31.10669976]
[1731669032423,0.1,212.97,212.94,43.76621576]
[1731669032619,0.1,212.97,212.95,7.32981576]
[1731669033516,0.1,212.97,212.96,35.80239976]
[1731669035321,0.1,212.97,212.96,55.80239976]
[1731669036524,0.1,212.97,212.96,48.472584]
[1731669037227,0.1,212.97,212.96,55.80239976]
[1731669038201,0.1,212.97,212.96,48.472584]
[1731669040304,0.1,212.97,212.96,28.472584]
[1731669040622,0.1,212.97,212.96,4.6957]
[1731669041307,0.1,212.97,212.96,55.80239976]
[1731669043004,0.1,212.99,212.97,43.776884]
[1731669043322,0.1,212.99,212.98,7.32981576]
[1731669043515,0.1,212.99,212.98,23.776884]
[1731669044215,0.1,212.99,212.98,31.10669976]
[1731669044408,0.1,212.99,212.98,23.776884]
[1731669044732,0.1,212.97,212.96,16.4349]
[1731669044921,0.1,212.92,212.9,7.32981576]
[1731669045128,0.1,212.92,212.89,7.32981576]
[1731669045507,0.1,212.92,212.9,7.32981576]
[1731669046222,0.1,212.92,212.91,55.80349976]
[1731669046607,0.1,212.92,212.91,48.473684]
[1731669046814,0.1,212.94,212.91,67.54549976]
[1731669047019,0.1,212.94,212.93,27.32981576]
[1731669047234,0.1,212.94,212.93,51.10669976]
[1731669047521,0.1,212.94,212.92,20.0]
[1731669047708,0.1,212.94,212.92,27.32981576]
[1731669048226,0.1,212.96,212.94,20.0]
[1731669048529,0.1,212.96,212.95,7.32981576]
[1731669048731,0.1,212.96,212.94,51.10669976]
[1731669049412,0.1,212.96,212.94,43.776884]
[1731669051212,0.1,212.96,212.95,12.02571576]
[1731669051409,0.1,212.96,212.88,23.5874]
[1731669051410,0.1,212.91,212.88,11.7433]
[1731669051623,7.42981576,212.89,212.88,11.7433]
[1731669051828,0.1,212.86,212.85,4.6981]
[1731669052012,0.1,212.86,212.83,16.4447]
[1731669052537,0.1,212.84,212.83,16.4447]
[1731669053134,7.42981576,212.84,212.83,11.7462]
[1731669053439,0.1,212.84,212.83,11.7462]
[1731669054015,7.42981576,212.84,212.83,11.7462]
[1731669054329,7.42981576,212.84,212.8,4.6992]
[1731669054330,0.1,212.84,212.8,4.6992]
[1731669054520,0.1,212.84,212.8,32.02901576]
[1731669054837,0.1,212.84,212.8,36.18465264]
[1731669055432,0.1,212.84,212.8,47.93275264]
[1731669055818,0.1,212.84,212.83,11.48545264]
[1731669056436,0.1,212.82,212.81,23.776884]
[1731669057268,0.1,212.82,212.81,55.26233664]
[1731669058431,0.1,212.84,212.82,16.4458]
[1731669058632,0.1,212.84,212.83,35.26233664]
[1731669058937,0.1,212.86,212.83,35.26233664]
[1731669059230,0.1,212.88,212.86,43.776884]
[1731669059435,0.1,212.9,212.87,55.26233664]
[1731669059738,0.1,212.92,212.9,20.0]
[1731669059931,0.1,212.92,212.91,35.26233664]
[1731669060133,0.1,212.92,212.91,55.26233664]
[1731669060522,0.1,212.92,212.91,59.95913664]
[1731669061229,0.1,212.92,212.91,16.18225264]
[1731669061440,0.1,212.92,212.9,23.22795264]
[1731669061627,0.1,212.92,212.9,11.7425]
[1731669061825,0.1,212.92,212.9,23.22795264]
[1731669062015,0.1,212.92,212.91,11.48545264]
[1731669063727,0.1,212.92,212.91,35.26233664]
[1731669065424,0.1,212.92,212.91,11.48545264]
[1731669065635,0.1,212.92,212.9,23.22795264]
[1731669068137,0.1,212.94,212.93,55.26233664]
[1731669068336,0.1,212.94,212.93,35.26233664]
[1731669068541,0.1,212.94,212.93,11.48545264]
[1731669069747,0.1,212.94,212.93,35.26233664]
[1731669076051,0.1,212.96,212.94,23.776884]
[1731669076357,0.1,212.96,212.88,15.5823]
[1731669076358,0.1,212.94,212.89,20.0]
[1731669076655,11.48545264,213.01,212.89,20.0]
[1731669076656,0.1,212.9,212.89,20.0]
[1731669077033,4.6957,212.96,212.83,15.6696]
[1731669077034,0.1,212.87,212.83,15.6696]
[1731669077351,0.1,212.84,212.83,15.6696]
[1731669077661,0.1,212.84,212.83,7.34483753]
[1731669078150,0.1,212.84,212.82,7.34483753]
[1731669078751,23.31809859,212.94,212.81,11.4836766]
[1731669078752,0.1,212.82,212.81,11.4836766]
[1731669079633,0.1,212.82,212.8,11.4836766]
[1731669081233,0.1,212.82,212.81,20.0]
[1731669081855,0.1,212.82,212.81,11.4836766]
[1731669082155,0.1,212.82,212.81,31.4836766]
[1731669082358,0.1,212.84,212.82,43.776884]
[1731669082552,0.1,212.84,212.83,11.4836766]
[1731669085140,0.1,212.84,212.82,31.4836766]
[1731669085457,0.1,212.82,212.8,11.4836766]
[1731669085661,0.1,212.82,212.81,11.4836766]
[1731669087746,0.1,212.82,212.81,35.2605606]
[1731669090664,0.1,212.8,212.79,11.4836766]
[1731669090856,0.1,212.8,212.79,55.2605606]
[1731669091450,0.1,212.82,212.8,43.776884]
[1731669091664,0.1,212.82,212.81,11.4836766]
[1731669092161,0.1,212.82,212.81,35.2605606]
[1731669092851,0.1,212.84,212.82,23.776884]
[1731669093165,0.1,212.84,212.83,55.2605606]
[1731669094078,0.1,212.81,212.75,6.1972]
[1731669094252,0.1,212.81,212.8,11.4836766]
[1731669095578,0.1,212.81,212.8,35.2605606]
[1731669096976,0.1,212.81,212.8,55.2605606]
[1731669098049,0.1,212.83,212.81,23.776884]
[1731669098244,0.1,212.83,212.82,11.4836766]
[1731669098447,0.1,212.83,212.82,35.2605606]
[1731669098965,0.1,212.83,212.82,11.4836766]
[1731669099161,0.1,212.81,212.8,11.4836766]
[1731669099360,0.1,212.81,212.8,35.2605606]
[1731669101367,0.1,212.79,212.78,11.4836766]
[1731669101972,0.1,212.79,212.77,11.4836766]
[1731669102175,16.3365,212.86,212.69,6.6318]
[1731669102176,0.1,212.77,212.76,11.4836766]
[1731669102359,0.1,212.77,212.75,11.4836766]
[1731669103179,0.1,212.77,212.69,6.6318]
[1731669103180,0.1,212.77,212.76,11.4836766]
[1731669103670,0.1,212.77,212.76,35.2605606]
[1731669104176,0.1,212.75,212.71,23.776884]
[1731669104481,0.1,212.75,212.73,11.4836766]
[1731669104973,0.1,212.75,212.72,11.4836766]
[1731669105472,0.1,212.73,212.71,11.4836766]
[1731669105672,0.1,212.73,212.64,6.4138]
[1731669105673,0.1,212.73,212.7,11.4836766]
[1731669105875,0.1,212.71,212.7,11.4836766]
[1731669106067,0.1,212.69,212.64,6.4138]
[1731669106383,0.1,212.69,212.68,11.4836766]
[1731669106681,0.1,212.69,212.68,31.4836766]
[1731669106975,0.1,212.71,212.68,31.4836766]
[1731669107178,0.1,212.73,212.7,11.4836766]
[1731669107479,0.1,212.73,212.72,11.4836766]
[1731669107870,0.1,212.73,212.72,55.2605606]
[1731669108190,29.75907519,212.83,212.73,23.776884]
[1731669108191,0.1,212.75,212.73,23.776884]
[1731669108482,0.1,212.77,212.74,11.4836766]
[1731669108656,0.1,212.77,212.76,11.4836766]
[1731669110460,0.1,212.75,212.73,11.4836766]
[1731669111588,0.1,212.75,212.73,10.9836766]
[1731669112469,0.1,212.75,212.72,11.4836766]
[1731669112772,0.1,212.75,212.73,11.4836766]
[1731669112976,0.1,212.75,212.64,6.4138]
[1731669112977,0.1,212.7,212.64,6.4138]
[1731669113491,0.1,212.7,212.65,23.776884]
[1731669113686,0.1,212.7,212.64,6.4138]
[1731669113687,0.1,212.7,212.69,23.776884]
[1731669114193,0.1,212.7,212.69,35.2605606]
[1731669114861,0.1,212.67,212.65,20.0]
[1731669115057,0.1,212.67,212.66,31.4836766]
[1731669116072,0.1,212.67,212.66,11.4836766]
[1731669117192,0.1,212.67,212.66,35.2605606]
[1731669118474,0.1,212.69,212.67,23.776884]
[1731669118786,0.1,212.69,212.68,35.2605606]
[1731669121477,0.1,212.69,212.68,11.4836766]
[1731669122095,0.1,212.64,212.59,0.4662874]
[1731669122391,0.1,212.64,212.63,11.4836766]
[1731669123985,0.1,212.64,212.63,35.2605606]
[1731669128699,0.1,212.64,212.59,0.4662874]
[1731669128895,0.1,212.64,212.63,11.4836766]
[1731669129470,0.1,212.62,212.61,23.776884]
[1731669129775,0.1,212.62,212.61,55.2605606]
[1731669130784,0.1,212.64,212.61,55.2605606]
[1731669130981,0.1,212.64,212.63,11.4836766]
[1731669135191,0.1,212.64,212.62,16.4612]
[1731669135192,0.1,212.64,212.62,23.2416766]
[1731669136192,0.1,212.64,212.63,11.4836766]
[1731669140297,0.1,212.66,212.64,40.236484]
[1731669140484,0.1,212.68,212.65,11.4836766]
[1731669140683,0.1,212.68,212.67,11.4836766]
[1731669141006,0.1,212.68,212.67,7.35717347]
[1731669141296,0.1,212.65,212.64,11.7569]
[1731669141675,0.1,212.65,212.64,19.11407347]
[1731669142582,0.1,212.65,212.64,23.81677347]
[1731669143611,0.1,212.67,212.64,23.81677347]
[1731669143900,0.1,212.67,212.66,7.35717347]
[1731669144582,0.1,212.69,212.67,4.7021]
[1731669144789,0.1,212.69,212.68,7.35717347]
[1731669148383,0.1,212.69,212.68,12.05897347]
[1731669148586,0.1,212.71,212.68,12.05897347]
[1731669148787,0.1,212.71,212.7,7.35717347]
[1731669149804,0.1,212.71,212.7,12.05857347]
[1731669158395,0.1,212.73,212.7,23.81217347]
[1731669158609,0.1,212.77,212.73,20.0]
[1731669158810,0.1,212.77,212.76,7.35717347]
[1731669160107,0.1,212.75,212.72,4.7009]
[1731669160618,0.1,212.73,212.72,4.7009]
[1731669161221,0.1,212.73,212.71,11.753]
[1731669161524,0.1,212.73,212.72,7.35717347]
[1731669162421,0.1,212.73,212.72,12.05817347]
[1731669169928,0.1,212.68,212.66,11.7553]
[1731669170108,0.1,212.68,212.67,7.35717347]
[1731669170310,0.1,212.68,212.66,16.4576]
[1731669170311,0.1,212.68,212.66,19.11247347]
[1731669170700,0.1,212.68,212.66,23.81477347]
[1731669171102,0.1,212.68,212.67,7.35717347]
[1731669173016,0.1,212.68,212.66,7.35717347]
[1731669173203,0.1,212.68,212.67,7.35717347]
[1731669174296,0.1,212.68,212.67,12.05927347]
[1731669176314,0.1,212.68,212.66,11.7557]
[1731669176514,0.1,212.68,212.67,7.35717347]
[1731669177427,0.1,212.68,212.67,12.05927347]
[1731669178709,0.1,212.73,212.68,43.776884]
[1731669178910,0.1,212.73,212.72,7.35717347]
[1731669180323,0.1,212.75,212.72,7.35717347]
[1731669180510,0.1,212.75,212.74,7.35717347]
[1731669180825,0.1,212.75,212.74,12.05767347]
[1731669181918,0.1,212.75,212.74,7.35717347]
[1731669182303,0.1,212.75,212.73,19.10897347]
[1731669182619,0.1,212.75,212.74,7.35717347]
[1731669183804,0.1,212.75,212.74,12.05767347]
[1731669184830,0.1,212.75,212.73,11.7518]
[1731669185033,0.1,212.7,212.69,16.4555]
[1731669185831,0.1,212.68,212.63,23.5141]
[1731669186011,0.1,212.7,212.67,7.35717347]
[1731669186218,0.1,212.7,212.69,27.35717347]
[1731669186825,0.1,212.7,212.69,7.35717347]
[1731669187226,0.1,212.7,212.68,7.35717347]
[1731669187910,0.1,212.7,212.68,4.7017]
[1731669188107,0.1,212.7,212.68,12.05887347]
[1731669188730,0.1,212.7,212.68,23.81357347]
[1731669189516,0.1,212.7,212.69,7.35717347]
[1731669190520,0.1,212.7,212.69,27.35717347]
[1731669190733,0.1,212.72,212.7,16.455]
[1731669191043,0.1,212.72,212.71,27.35717347]
[1731669191249,0.1,212.74,212.71,27.35717347]
[1731669191539,0.1,212.74,212.73,7.35717347]
[1731669192448,0.1,212.74,212.73,12.05787347]
[1731669192945,0.1,212.74,212.73,16.19168475]
[1731669193526,0.1,212.69,212.67,20.0]
[1731669193735,0.1,212.69,212.68,31.49098475]
[1731669193943,0.1,212.69,212.68,20.0]
[1731669194135,0.1,212.69,212.68,31.49098475]
[1731669194651,0.1,212.66,212.64,16.4596]
[1731669195247,0.1,212.66,212.65,11.49098475]
[1731669195747,0.1,212.66,212.65,31.49098475]
[1731669196451,0.1,212.66,212.65,11.49098475]
[1731669196949,0.1,212.68,212.66,16.4581]
[1731669197147,0.1,212.68,212.67,11.49098475]
[1731669198642,0.1,212.68,212.66,27.94908475]
[1731669199055,0.1,212.68,212.67,11.49098475]
[1731669200147,0.1,212.68,212.61,22.2565]
[1731669200357,0.1,212.66,212.64,20.0]
[1731669201940,0.1,212.66,212.65,16.19348475]
[1731669205652,0.1,212.66,212.62,11.758]
[1731669205867,0.1,212.66,212.65,11.49098475]
[1731669206745,0.1,212.66,212.65,16.19348475]
[1731669207390,0.1,212.66,212.65,4.7025]
[1731669207545,0.1,212.66,212.64,11.49098475]
[1731669207546,0.1,212.66,212.64,16.19368475]
[1731669207760,0.1,212.63,212.59,0.4662874]
[1731669207936,0.1,212.6,212.59,0.4662874]
[1731669208452,0.1,212.6,212.59,11.95727215]
[1731669208632,0.1,212.62,212.6,16.4627]
[1731669209035,0.1,212.62,212.61,11.49098475]
[1731669210044,0.1,212.62,212.61,31.49098475]
[1731669210442,0.1,212.65,212.62,43.776884]
[1731669210647,0.1,212.65,212.64,35.26786875]
[1731669210848,0.1,212.65,212.64,39.97056875]
[1731669211044,0.1,212.7,212.65,43.776884]
[1731669211541,0.1,212.72,212.69,11.49098475]
[1731669211754,0.1,212.72,212.68,11.49098475]
[1731669211755,0.1,212.72,212.71,11.49098475]
[1731669212064,0.1,212.67,212.65,43.776884]
[1731669212266,0.1,212.67,212.66,31.49098475]
[1731669212438,0.1,212.77,212.66,31.49098475]
[1731669212439,0.1,212.69,212.67,43.776884]
[1731669212637,0.1,212.69,212.68,11.49098475]
[1731669213150,0.1,212.69,212.68,16.19278475]
[1731669213943,0.1,212.69,212.67,11.49098475]
[1731669214144,0.1,212.69,212.66,11.49098475]
[1731669214738,0.1,212.69,212.67,7.35945187]
[1731669217360,0.1,212.65,212.64,11.7569]
[1731669217562,0.1,212.65,212.64,19.11635187]
[1731669217863,0.1,212.65,212.64,23.81905187]
[1731669219267,0.1,212.65,212.64,19.11635187]
[1731669219559,0.1,212.65,212.64,23.81905187]
[1731669221451,0.1,212.67,212.65,23.776884]
[1731669221646,0.1,212.69,212.66,27.35945187]
[1731669221860,0.1,212.69,212.68,7.35945187]
[1731669222061,0.1,212.69,212.68,27.35945187]
[1731669222261,0.1,212.71,212.69,23.776884]
[1731669222483,0.1,212.71,212.7,7.35945187]
[1731669222854,0.1,212.71,212.69,23.776884]
[1731669223160,0.1,212.69,212.65,20.0]
[1731669223361,0.1,212.69,212.68,7.35945187]
[1731669223547,0.1,212.69,212.68,51.13633587]
[1731669225374,0.1,212.69,212.68,35.83813587]
[1731669225755,0.1,212.69,212.68,4.7018]
[1731669225956,0.1,212.69,212.68,12.06125187]
[1731669228367,0.1,212.67,212.66,11.7558]
[1731669228882,16.2086,212.7,212.59,23.9855874]
[1731669228883,0.1,212.61,212.6,4.7036]
[1731669230167,0.1,212.61,212.6,24.7036]
[1731669230374,0.1,212.61,212.6,4.7036]
[1731669230687,0.1,212.61,212.6,12.06305187]
[1731669238370,0.1,212.63,212.61,23.776884]
[1731669238593,0.1,212.63,212.62,31.13633587]
[1731669238784,0.1,212.63,212.62,7.35945187]
[1731669240488,0.1,212.63,212.62,12.06265187]
[1731669247797,0.1,212.65,212.62,67.59753587]
[1731669247976,0.1,212.65,212.64,7.35945187]
[1731669250501,0.1,212.65,212.64,12.06215187]
[1731669251485,0.1,212.69,212.65,43.776884]
[1731669251691,0.1,212.69,212.68,7.35945187]
[1731669252099,0.1,212.67,212.65,43.776884]
[1731669252442,14.57338264,212.75,212.65,43.776884]
[1731669252443,0.1,212.69,212.67,20.0]
[1731669252611,0.1,212.69,212.68,7.35945187]
[1731669253287,0.1,212.69,212.68,12.06125187]
[1731669255178,0.1,212.69,212.68,35.83813587]
[1731669255594,0.1,212.71,212.69,20.0]
[1731669255812,0.1,212.71,212.7,7.35945187]
[1731669256888,0.1,212.71,212.7,12.06085187]
[1731669257789,0.1,212.71,212.7,35.83773587]
[1731669257990,0.1,212.71,212.7,55.83773587]
[1731669260700,0.1,212.76,212.71,43.776884]
[1731669260891,0.1,212.76,212.75,31.13633587]
[1731669262108,0.1,212.76,212.75,12.05975187]
[1731669264791,0.1,212.76,212.74,11.7513]
[1731669265116,0.1,212.76,212.73,7.35945187]
[1731669265413,0.1,212.74,212.73,7.35945187]
[1731669265715,0.1,212.74,212.73,12.06015187]
[1731669266010,0.1,212.74,212.73,35.83703587]
[1731669266198,0.1,212.74,212.73,7.35945187]
[1731669266803,0.1,212.74,212.72,7.35945187]
[1731669267204,0.1,212.74,212.73,7.35945187]
[1731669267596,0.1,212.72,212.64,46.91067135]
[1731669267915,0.1,212.77,212.65,36.4589]
[1731669267916,0.1,212.68,212.65,36.4589]
[1731669268594,0.1,212.66,212.65,36.4589]
[1731669268799,0.1,212.66,212.65,43.81835187]
[1731669270096,0.1,212.66,212.65,67.59523587]
[1731669270904,0.1,212.66,212.65,16.4589]
[1731669271514,0.1,212.66,212.65,23.81835187]
[1731669272218,0.1,212.66,212.65,43.81835187]
[1731669273599,0.1,212.66,212.65,23.81835187]
[1731669273916,0.1,212.66,212.65,43.81835187]
[1731669276408,0.1,212.66,212.65,67.59523587]
[1731669277921,0.1,212.72,212.66,43.776884]
[1731669278107,0.1,212.72,212.71,7.35945187]
[1731669279214,0.1,212.74,212.71,27.35945187]
[1731669279407,0.1,212.74,212.73,31.13633587]
[1731669279614,0.1,212.74,212.73,23.776884]
[1731669279810,0.1,212.74,212.73,35.83703587]
[1731669280333,0.1,212.68,212.63,43.776884]
[1731669280622,0.1,212.68,212.67,31.13633587]
[1731669281719,0.1,212.7,212.67,51.13633587]
[1731669281904,0.1,212.7,212.69,55.83793587]
[1731669282111,0.1,212.72,212.7,43.776884]
[1731669282313,0.1,212.72,212.71,27.35945187]
[1731669284519,0.1,212.72,212.71,32.06065187]
[1731669285005,0.1,212.72,212.71,4.7012]
[1731669285312,0.1,212.72,212.71,32.06065187]
[1731669287829,0.1,212.72,212.71,43.81365187]
[1731669288602,0.1,212.72,212.71,23.81365187]
[1731669299120,0.1,212.68,212.67,11.7551]
[1731669299336,0.1,212.68,212.67,39.11455187]
[1731669299541,0.1,212.68,212.67,43.81665187]
[1731669306042,0.1,212.68,212.67,23.81665187]
[1731669306246,0.1,212.68,212.67,43.81665187]
[1731669306423,0.1,212.7,212.67,43.81665187]
[1731669306749,0.1,212.7,212.69,12.06105187]
[1731669306947,0.1,212.72,212.69,23.81515187]
[1731669307243,0.1,212.72,212.71,7.35945187]
[1731669308434,0.1,212.72,212.71,4.7012]
[1731669308739,0.1,212.72,212.71,12.06065187]
[1731669309751,0.1,212.7,212.69,16.4556]
[1731669309950,0.1,212.7,212.69,11.7541]
[1731669310150,0.1,212.68,212.67,12.06135187]
[1731669311032,0.1,212.66,212.65,16.4586]
[1731669311253,0.1,212.64,212.63,12.06225187]
[1731669311743,0.1,212.62,212.61,16.4615]
[1731669312756,0.1,212.62,212.61,23.82095187]
[1731669312938,0.1,212.64,212.61,23.82095187]